[Event "Panchenko Memorial 2019"]
[Site "Chelyabinsk"]
[Date "2019.09.16"]
[Round "8.8"]
[White "Shaposhnikov, Evgeny"]
[Black "Solozhenkin, Evgeniy"]
[Result "1-0"]
[ECO "A46"]
[WhiteElo "2572"]
[BlackElo "2394"]
[Annotator "ChessBase"]
[PlyCount "153"]
[EventDate "2019.09.09"]
[EventType "swiss"]
[EventCountry "RUS"]
[SourceTitle "playchess.com"]
[Source "ChessBase"]
[SourceQuality "1"]
[TimeControl "5400+30"]

1. Nf3 {[%emt 0:00:00]} Nf6 {[%emt 0:00:14]} 2. d4 {[%emt 0:00:00]} e6 {[%emt 0:00:09]} 3. e3 {[%emt 0:00:00]} b6 {[%emt 0:00:15]} 4. Bd3 {[%emt 0:00:09]} Bb7 {[%emt 0:00:07]} 5. O-O {[%emt 0:00:08]} d5 {[%emt 0:01:32]} 6. c4 {[%emt 0:00:42]} Bd6 {[%emt 0:00:32]} 7. b3 {[%emt 0:00:11]} O-O {[%emt 0:02:39]} 8. cxd5 {[%emt 0:00:07]} exd5 {[%emt 0:01:11]} 9. Ba3 {[%emt 0:00:07]} c5 {[%emt 0:09:16]} 10. Nc3 {[%emt 0:00:48]} Nbd7 {[%emt 0:08:28]} 11. Nb5 {[%emt 0:02:05]} Bb8 {[%emt 0:00:45]} 12. Rc1 {[%emt 0:00:22]} a6 {[%emt 0:03:18]} 13. Nc3 {[%emt 0:01:06]} Re8 {[%emt 0:00:04]} 14. dxc5 {[%emt 0:01:12]} Nxc5 {[%emt 0:05:01]} 15. Bf5 {[%emt 0:07:12]} g6 {[%emt 0:04:31]} 16. Bh3 {[%emt 0:00:51]} Bd6 {[%emt 0:00:13]} 17. Bb2 {[%emt 0:02:17]} Bf8 {[%emt 0:02:00]} 18. Qc2 {[%emt 0:10:29]} Qe7 {[%emt 0:07:41]} 19. Rfd1 {[%emt 0:00:44]} Nce4 {[%emt 0:08:59]} 20. Nxe4 {[%emt 0:01:42]} dxe4 {[%emt 0:00:59]} 21. Qc3 {[%emt 0:06:31]} exf3 {[%emt 0:01:31]} 22. Qxf6 {[%emt 0:03:24]} Qxf6 {[%emt 0:00:05]} 23. Bxf6 {[%emt 0:00:07]} Be7 {[%emt 0:11:31]} 24. Rc7 {[%emt 0:29:44]} Bxf6 {[%emt 0:02:53]} 25. Rxb7 {[%emt 0:00:17]} Rab8 {[%emt 0:03:09]} 26. Ra7 {[%emt 0:01:36]} Ra8 {[%emt 0:00:21]} 27. Rdd7 {[%emt 0:07:14]} Rxa7 {[%emt 0:00:35]} 28. Rxa7 {[%emt 0:00:06]} Rd8 {[%emt 0:02:23]} 29. Bd7 {[%emt 0:00:15]} fxg2 {[%emt 0:00:55]} 30. Kxg2 {[%emt 0:00:15]} Kf8 {[%emt 0:03:24]} 31. f4 {[%emt 0:01:12]} g5 {[%emt 0:03:37]} 32. Kf3 {[%emt 0:00:12]} gxf4 {[%emt 0:00:39]} 33. Kxf4 {[%emt 0:00:15]} a5 {[%emt 0:03:41]} 34. Kf5 {[%emt 0:01:18]} Bh4 {[%emt 0:08:19]} 35. e4 {[%emt 0:00:46]} h6 {[%emt 0:00:11]} 36. a4 {[%emt 0:00:46]} Rb8 {[%emt 0:00:35]} 37. e5 {[%emt 0:01:12]} Bg5 {[%emt 0:00:53]} 38. h3 {[%emt 0:01:21]} Bh4 {[%emt 0:00:32]} 39. Ke4 {[%emt 0:03:21]} Be7 {[%emt 0:00:40]} 40. Kf5 {[%emt 0:02:57]} Bg5 {[%emt 0:00:08]} 41. Kg4 {[%emt 0:01:25]} Rd8 {[%emt 0:02:25]} 42. h4 {[%emt 0:05:27]} Bd2 {[%emt 0:00:16]} 43. Kf5 {[%emt 0:02:22]} Be1 {[%emt 0:00:11]} 44. h5 {[%emt 0:00:10]} Bd2 {[%emt 0:00:45]} 45. Rb7 {[%emt 0:00:07]} Be3 {[%emt 0:00:21]} 46. Ke4 {[%emt 0:00:41]} Bg1 {[%emt 0:00:27]} 47. Kd5 {[%emt 0:02:05]} Bh2 {[%emt 0:01:08]} 48. e6 {[%emt 0:02:29]} Bg1 {[%emt 0:01:08]} 49. Ke5 {[%emt 0:00:25]} Bc5 {[%emt 0:00:44]} 50. exf7 {[%emt 0:00:23]} Kxf7 {[%emt 0:00:19]} 51. Be6+ {[%emt 0:00:31]} Ke8 {[%emt 0:00:52]} 52. Rh7 {[%emt 0:01:30]} Be3 {[%emt 0:00:29]} 53. Bd5 {[%emt 0:00:46]} Kf8 {[%emt 0:00:55]} 54. Rf7+ {[%emt 0:00:12]} Ke8 {[%emt 0:00:02]} 55. Rh7 {[%emt 0:00:30]} Kf8 {[%emt 0:00:20]} 56. Ke6 {[%emt 0:00:20]} Kg8 {[%emt 0:01:37]} 57. Rc7 {[%emt 0:00:50]} Bg5 {[%emt 0:00:10]} 58. Rc6 {[%emt 0:00:24]} Rb8 {[%emt 0:00:24]} 59. Kd7+ {[%emt 0:00:32]} Kg7 {[%emt 0:00:36]} 60. Rg6+ {[%emt 0:00:04]} Kh8 {[%emt 0:00:11]} 61. Kc6 {[%emt 0:00:25]} Be3 {[%emt 0:00:19]} 62. Re6 {[%emt 0:00:08]} Rc8+ {[%emt 0:00:13]} 63. Kb7 {[%emt 0:00:15]} Rc3 {[%emt 0:00:03]} 64. Rg6 {[%emt 0:01:13]} Rc5 {[%emt 0:00:34]} 65. Rd6 {[%emt 0:01:45]} Kg7 {[%emt 0:00:22]} 66. Ka6 {[%emt 0:00:19]} Bf2 {[%emt 0:01:53]} 67. Rg6+ {[%emt 0:00:19]} Kf8 {[%emt 0:00:56]} 68. Rxh6 {[%emt 0:00:19]} Rxd5 {[%emt 0:01:21]} 69. Rf6+ {[%emt 0:00:04]} Ke7 {[%emt 0:00:41]} 70. Rxf2 {[%emt 0:00:06]} Rxh5 {[%emt 0:00:04]} 71. Kxb6 {[%emt 0:00:24]} Rh3 {[%emt 0:00:25]} 72. Rb2 {[%emt 0:00:38]} Rh5 {[%emt 0:00:22]} 73. Rb1 {[%emt 0:00:48]} Kd7 {[%emt 0:00:24]} 74. Rd1+ {[%emt 0:00:06]} Ke7 {[%emt 0:00:38]} 75. Rd3 {[%emt 0:00:07]} Rg5 {[%emt 0:01:08]} 76. Rc3 {[%emt 0:00:02]} Kd7 {[%emt 0:00:40]} 77. Rc5 1-0

[Event "Panchenko Memorial 2019"]
[Site "Chelyabinsk"]
[Date "2019.09.16"]
[Round "8.9"]
[White "Frolyanov, Dmitry"]
[Black "Berzinsh, Roland"]
[Result "1-0"]
[ECO "C92"]
[WhiteElo "2556"]
[BlackElo "2376"]
[Annotator "ChessBase"]
[PlyCount "59"]
[EventDate "2019.09.09"]
[EventType "swiss"]
[EventCountry "RUS"]
[SourceTitle "playchess.com"]
[Source "ChessBase"]
[SourceQuality "1"]
[TimeControl "5400+30"]

1. e4 {[%emt 0:00:00]} e5 {[%emt 0:00:00]} 2. Nf3 {[%emt 0:00:00]} Nc6 {[%emt 0:00:04]} 3. Bb5 {[%emt 0:00:00]} a6 {[%emt 0:00:10]} 4. Ba4 {[%emt 0:00:00]} Nf6 {[%emt 0:00:09]} 5. O-O {[%emt 0:00:04]} Be7 {[%emt 0:00:12]} 6. Re1 {[%emt 0:00:23]} b5 {[%emt 0:00:09]} 7. Bb3 {[%emt 0:00:07]} d6 {[%emt 0:00:13]} 8. c3 {[%emt 0:00:22]} O-O {[%emt 0:00:09]} 9. h3 {[%emt 0:00:13]} Bb7 {[%emt 0:00:15]} 10. d4 {[%emt 0:00:36]} Nd7 {[%emt 0:00:16]} 11. Nbd2 {[%emt 0:07:43]} exd4 {[%emt 0:00:58]} 12. cxd4 {[%emt 0:00:34]} Bf6 {[%emt 0:00:12]} 13. Nf1 {[%emt 0:00:29]} Na5 {[%emt 0:00:10]} 14. Bc2 {[%emt 0:00:10]} Re8 {[%emt 0:00:21]} 15. Rb1 {[%emt 0:05:41]} c5 {[%emt 0:00:56]} 16. d5 {[%emt 0:01:09]} Nc4 {[%emt 0:00:11]} 17. b3 {[%emt 0:06:45]} Nce5 {[%emt 0:00:46]} 18. N3h2 {[%emt 0:00:27]} Nb6 {[%emt 0:00:31]} 19. Ng3 {[%emt 0:04:09]} g6 {[%emt 0:00:38]} 20. Rf1 {[%emt 0:07:47]} b4 {[%emt 0:03:51]} 21. f4 {[%emt 0:02:17]} Ned7 {[%emt 0:00:14]} 22. Ng4 {[%emt 0:02:38]} Bg7 {[%emt 0:09:35]} 23. f5 {[%emt 0:04:01]} Ne5 {[%emt 0:07:44]} 24. Nh6+ {[%emt 0:00:26]} Bxh6 {[%emt 0:33:46]} 25. Bxh6 {[%emt 0:00:05]} Qh4 {[%emt 0:00:06]} 26. Bf4 {[%emt 0:00:43]} g5 {[%emt 0:01:23]} 27. Bxe5 {[%emt 0:01:03]} Rxe5 {[%emt 0:00:08]} 28. Nh5 {[%emt 0:00:36]} Nd7 {[%emt 0:00:12]} 29. g3 {[%emt 0:04:47]} Qxh3 {[%emt 0:00:22]} 30. Rf2 {[%emt 0:00:07]} 1-0

[Event "Panchenko Memorial 2019"]
[Site "Chelyabinsk"]
[Date "2019.09.16"]
[Round "8.10"]
[White "Salemgareev, Tagir"]
[Black "Tsvetkov, Andrey"]
[Result "1/2-1/2"]
[ECO "D43"]
[WhiteElo "2457"]
[BlackElo "2373"]
[Annotator "ChessBase"]
[PlyCount "108"]
[EventDate "2019.09.09"]
[EventType "swiss"]
[EventCountry "RUS"]
[SourceTitle "playchess.com"]
[Source "ChessBase"]
[SourceQuality "1"]
[TimeControl "5400+30"]

1. d4 {[%emt 0:00:00]} d5 {[%emt 0:00:00]} 2. c4 {[%emt 0:00:00]} e6 {[%emt 0:00:00]} 3. Nf3 {[%emt 0:00:00]} Nf6 {[%emt 0:00:00]} 4. Nc3 {[%emt 0:00:00]} c6 {[%emt 0:00:00]} 5. Bg5 {[%emt 0:00:00]} h6 {[%emt 0:00:00]} 6. Bxf6 {[%emt 0:00:05]} Qxf6 {[%emt 0:00:00]} 7. e3 {[%emt 0:00:08]} Nd7 {[%emt 0:00:06]} 8. Bd3 {[%emt 0:00:06]} dxc4 {[%emt 0:00:12]} 9. Bxc4 {[%emt 0:00:05]} g6 {[%emt 0:00:02]} 10. O-O {[%emt 0:00:08]} Bg7 {[%emt 0:00:02]} 11. Re1 {[%emt 0:00:10]} O-O {[%emt 0:00:39]} 12. e4 {[%emt 0:00:06]} Qe7 {[%emt 0:01:19]} 13. e5 {[%emt 0:00:57]} Rd8 {[%emt 0:02:18]} 14. Bd3 {[%emt 0:10:30]} b5 {[%emt 0:00:31]} 15. Qe2 {[%emt 0:02:17]} Rb8 {[%emt 0:00:47]} 16. Rac1 {[%emt 0:08:00]} c5 {[%emt 0:01:05]} 17. Nxb5 {[%emt 0:09:42]} Bb7 {[%emt 0:00:10]} 18. Nd6 {[%emt 0:11:25]} Bxf3 {[%emt 0:02:16]} 19. Qxf3 {[%emt 0:00:04]} cxd4 {[%emt 0:00:54]} 20. Nc4 {[%emt 0:00:29]} Rb5 {[%emt 0:18:52]} 21. Qg3 {[%emt 0:02:43]} Nb6 {[%emt 0:09:56]} 22. Nxb6 {[%emt 0:04:23]} Rxb6 {[%emt 0:00:01]} 23. Re2 {[%emt 0:00:39]} Qb7 {[%emt 0:23:10]} 24. b3 {[%emt 0:09:32]} Rc6 {[%emt 0:03:09]} 25. Rxc6 {[%emt 0:08:42]} Qxc6 {[%emt 0:00:12]} 26. Rc2 {[%emt 0:00:07]} Qb7 {[%emt 0:02:35]} 27. f4 {[%emt 0:01:01]} Rc8 {[%emt 0:03:16]} 28. Qf3 {[%emt 0:10:46]} Qd7 {[%emt 0:02:14]} 29. Bc4 {[%emt 0:00:27]} d3 {[%emt 0:08:32]} 30. Rd2 {[%emt 0:00:43]} Qd4+ {[%emt 0:06:39]} 31. Kh1 {[%emt 0:03:03]} Qa1+ {[%emt 0:01:39]} 32. Rd1 {[%emt 0:00:31]} Qxa2 {[%emt 0:00:40]} 33. Qxd3 {[%emt 0:00:58]} Qa5 {[%emt 0:00:35]} 34. g3 {[%emt 0:03:14]} Qb6 {[%emt 0:02:12]} 35. Kg2 {[%emt 0:01:12]} Qc6+ {[%emt 0:00:12]} 36. Kh3 {[%emt 0:01:01]} Bf8 {[%emt 0:02:29]} 37. Qd7 {[%emt 0:02:26]} Qxd7 {[%emt 0:03:59]} 38. Rxd7 {[%emt 0:00:03]} Bc5 {[%emt 0:00:07]} 39. g4 {[%emt 0:00:22]} Bb6 {[%emt 0:00:41]} 40. f5 {[%emt 0:05:42]} gxf5 {[%emt 0:00:21]} 41. gxf5 {[%emt 0:00:06]} Rc5 {[%emt 0:00:45]} 42. fxe6 {[%emt 0:00:57]} fxe6 {[%emt 0:00:01]} 43. Bxe6+ {[%emt 0:00:08]} Kf8 {[%emt 0:00:23]} 44. Rf7+ {[%emt 0:02:38]} Ke8 {[%emt 0:00:11]} 45. Rh7 {[%emt 0:00:18]} Rxe5 {[%emt 0:02:24]} 46. Rxh6 {[%emt 0:00:05]} Kf8 {[%emt 0:00:21]} 47. Bc4 {[%emt 0:00:56]} Kg7 {[%emt 0:00:22]} 48. Rh4 {[%emt 0:01:24]} Bc7 {[%emt 0:01:21]} 49. Rd4 {[%emt 0:01:43]} Kf6 {[%emt 0:00:24]} 50. Kh4 {[%emt 0:02:18]} Re7 {[%emt 0:01:02]} 51. h3 {[%emt 0:01:56]} Rh7+ {[%emt 0:00:07]} 52. Kg4 {[%emt 0:00:02]} Rg7+ {[%emt 0:00:05]} 53. Kf3 {[%emt 0:00:05]} Rg3+ {[%emt 0:00:27]} 54. Ke4 {[%emt 0:00:09]} Rxh3 {[%emt 0:00:03]} 1/2-1/2

[Event "Panchenko Memorial 2019"]
[Site "Chelyabinsk"]
[Date "2019.09.17"]
[Round "9.2"]
[White "Sivuk, Vitaly"]
[Black "Nesterov, Arseniy"]
[Result "0-1"]
[ECO "D11"]
[WhiteElo "2559"]
[BlackElo "2473"]
[Annotator "ChessBase"]
[PlyCount "124"]
[EventDate "2019.09.09"]
[EventType "swiss"]
[EventCountry "RUS"]
[SourceTitle "playchess.com"]
[Source "ChessBase"]
[SourceQuality "1"]
[TimeControl "5400+30"]

1. d4 {[%emt 0:00:00]} d5 {[%emt 0:00:00]} 2. c4 {[%emt 0:00:00]} c6 {[%emt 0:00:00]} 3. Nf3 {[%emt 0:00:00]} Nf6 {[%emt 0:00:00]} 4. e3 {[%emt 0:00:05]} Bg4 {[%emt 0:00:00]} 5. h3 {[%emt 0:00:13]} Bh5 {[%emt 0:00:08]} 6. g4 {[%emt 0:00:17]} Bg6 {[%emt 0:00:03]} 7. Ne5 {[%emt 0:00:10]} Be4 {[%emt 0:01:17]} 8. f3 {[%emt 0:00:10]} Bxb1 {[%emt 0:00:05]} 9. Rxb1 {[%emt 0:00:07]} e6 {[%emt 0:00:25]} 10. Qb3 {[%emt 0:00:15]} Qb6 {[%emt 0:01:17]} 11. Bd2 {[%emt 0:00:21]} Nbd7 {[%emt 0:02:14]} 12. Qxb6 {[%emt 0:04:18]} axb6 {[%emt 0:00:14]} 13. Nxd7 {[%emt 0:00:17]} Nxd7 {[%emt 0:00:11]} 14. a3 {[%emt 0:00:07]} dxc4 {[%emt 0:08:59]} 15. Bxc4 {[%emt 0:00:12]} b5 {[%emt 0:00:06]} 16. Bb3 {[%emt 0:00:57]} e5 {[%emt 0:08:53]} 17. dxe5 {[%emt 0:04:52]} Nxe5 {[%emt 0:00:10]} 18. Ke2 {[%emt 0:00:08]} Bd6 {[%emt 0:05:53]} 19. Bc3 {[%emt 0:03:34]} O-O-O {[%emt 0:13:49]} 20. Rhd1 {[%emt 0:21:51]} Rhe8 {[%emt 0:06:37]} 21. Rd4 {[%emt 0:04:06]} Bc5 {[%emt 0:04:40]} 22. Rxd8+ {[%emt 0:02:48]} Kxd8 {[%emt 0:00:08]} 23. Rd1+ {[%emt 0:05:09]} Kc7 {[%emt 0:04:00]} 24. e4 {[%emt 0:05:32]} f6 {[%emt 0:05:19]} 25. f4 {[%emt 0:05:42]} Nd7 {[%emt 0:02:29]} 26. Kf3 {[%emt 0:01:52]} g5 {[%emt 0:02:18]} 27. e5 {[%emt 0:05:43]} fxe5 {[%emt 0:01:14]} 28. fxg5 {[%emt 0:00:10]} Rf8+ {[%emt 0:04:06]} 29. Kg2 {[%emt 0:00:12]} Rf2+ {[%emt 0:00:25]} 30. Kg3 {[%emt 0:00:13]} e4 {[%emt 0:00:13]} 31. Be6 {[%emt 0:02:24]} Rf3+ {[%emt 0:00:06]} 32. Kg2 {[%emt 0:00:07]} Bd6 {[%emt 0:05:21]} 33. h4 {[%emt 0:11:42]} Rg3+ {[%emt 0:07:21]} 34. Kf1 {[%emt 0:00:37]} Ne5 {[%emt 0:01:17]} 35. Ba5+ {[%emt 0:09:30]} b6 {[%emt 0:00:07]} 36. Bxb6+ {[%emt 0:00:05]} Kxb6 {[%emt 0:00:04]} 37. Rxd6 {[%emt 0:00:06]} Rf3+ {[%emt 0:02:22]} 38. Ke2 {[%emt 0:01:55]} Kc5 {[%emt 0:00:47]} 39. Rd8 {[%emt 0:01:17]} Ng6 {[%emt 0:00:47]} 40. b4+ {[%emt 0:01:30]} Kb6 {[%emt 0:00:07]} 41. Bf5 {[%emt 0:01:52]} Nf4+ {[%emt 0:01:27]} 42. Kd1 {[%emt 0:04:04]} e3 {[%emt 0:00:23]} 43. Re8 {[%emt 0:01:15]} Rf1+ {[%emt 0:00:43]} 44. Kc2 {[%emt 0:00:01]} e2 {[%emt 0:00:13]} 45. Bxh7 {[%emt 0:00:52]} e1=Q {[%emt 0:00:11]} 46. Rxe1 {[%emt 0:00:03]} Rxe1 {[%emt 0:00:07]} 47. Bf5 {[%emt 0:01:27]} Rh1 {[%emt 0:06:40]} 48. g6 {[%emt 0:00:20]} Rh2+ {[%emt 0:01:37]} 49. Kb3 {[%emt 0:00:21]} Nxg6 {[%emt 0:01:47]} 50. Bxg6 {[%emt 0:00:02]} Rxh4 {[%emt 0:00:07]} 51. Bf5 {[%emt 0:00:06]} Rh3+ {[%emt 0:00:04]} 52. Kb2 {[%emt 0:00:04]} Rg3 {[%emt 0:00:05]} 53. Be6 {[%emt 0:00:15]} Kc7 {[%emt 0:00:06]} 54. Bf5 {[%emt 0:00:43]} Kd6 {[%emt 0:00:19]} 55. Bc8 {[%emt 0:00:05]} Kd5 {[%emt 0:00:16]} 56. Bd7 {[%emt 0:00:11]} Re3 {[%emt 0:01:12]} 57. Bf5 {[%emt 0:03:26]} Kc4 {[%emt 0:00:25]} 58. g5 {[%emt 0:01:25]} Re5 {[%emt 0:01:59]} 59. Bd7 {[%emt 0:00:15]} Re2+ {[%emt 0:00:24]} 60. Kc1 {[%emt 0:00:25]} Kc3 {[%emt 0:00:17]} 61. Kb1 {[%emt 0:01:23]} Kb3 {[%emt 0:00:14]} 62. Kc1 {[%emt 0:00:07]} Re7 {[%emt 0:00:16]} 0-1

[Event "Panchenko Memorial 2019"]
[Site "Chelyabinsk"]
[Date "2019.09.17"]
[Round "9.3"]
[White "Zhigalko, Andrey"]
[Black "Lobanov, Sergei"]
[Result "1/2-1/2"]
[ECO "C92"]
[WhiteElo "2539"]
[BlackElo "2515"]
[Annotator "ChessBase"]
[PlyCount "102"]
[EventDate "2019.09.09"]
[EventType "swiss"]
[EventCountry "RUS"]
[SourceTitle "playchess.com"]
[Source "ChessBase"]
[SourceQuality "1"]
[TimeControl "5400+30"]

1. e4 {[%emt 0:00:38]} e5 {[%emt 0:00:00]} 2. Nf3 {[%emt 0:00:08]} Nc6 {[%emt 0:00:00]} 3. Bb5 {[%emt 0:00:08]} a6 {[%emt 0:00:00]} 4. Ba4 {[%emt 0:00:04]} Nf6 {[%emt 0:00:00]} 5. O-O {[%emt 0:00:11]} Be7 {[%emt 0:00:00]} 6. Re1 {[%emt 0:00:08]} b5 {[%emt 0:00:10]} 7. Bb3 {[%emt 0:00:06]} d6 {[%emt 0:00:05]} 8. c3 {[%emt 0:00:05]} O-O {[%emt 0:00:05]} 9. h3 {[%emt 0:00:04]} Re8 {[%emt 0:00:23]} 10. Ng5 {[%emt 0:00:57]} Rf8 {[%emt 0:00:07]} 11. Nf3 {[%emt 0:00:13]} Re8 {[%emt 0:00:25]} 12. d4 {[%emt 0:00:06]} Bb7 {[%emt 0:00:10]} 13. Ng5 {[%emt 0:00:32]} Rf8 {[%emt 0:00:06]} 14. Nf3 {[%emt 0:00:07]} Re8 {[%emt 0:00:05]} 15. Nbd2 {[%emt 0:00:52]} Bf8 {[%emt 0:00:14]} 16. a3 {[%emt 0:02:57]} h6 {[%emt 0:00:21]} 17. Bc2 {[%emt 0:00:47]} Nb8 {[%emt 0:00:05]} 18. a4 {[%emt 0:01:34]} Nbd7 {[%emt 0:00:37]} 19. Bd3 {[%emt 0:00:40]} c6 {[%emt 0:10:50]} 20. Qc2 {[%emt 0:00:46]} Qc7 {[%emt 0:01:19]} 21. b3 {[%emt 0:03:36]} d5 {[%emt 0:04:12]} 22. dxe5 {[%emt 0:28:36]} Nxe5 {[%emt 0:00:01]} 23. Nxe5 {[%emt 0:00:11]} Rxe5 {[%emt 0:00:29]} 24. c4 {[%emt 0:29:05]} bxc4 {[%emt 0:11:22]} 25. bxc4 {[%emt 0:00:04]} dxe4 {[%emt 0:01:26]} 26. Nxe4 {[%emt 0:00:24]} Nxe4 {[%emt 0:01:33]} 27. Bxe4 {[%emt 0:11:52]} f5 {[%emt 0:28:25]} 28. Bf4 {[%emt 0:00:05]} fxe4 {[%emt 0:00:03]} 29. Rxe4 {[%emt 0:00:23]} Rae8 {[%emt 0:00:19]} 30. c5 {[%emt 0:03:03]} Bxc5 {[%emt 0:05:25]} 31. Rae1 {[%emt 0:12:25]} Rxe4 {[%emt 0:03:44]} 32. Rxe4 {[%emt 0:00:17]} Bxf2+ {[%emt 0:00:10]} 33. Kxf2 {[%emt 0:02:39]} Rf8 {[%emt 0:06:08]} 34. Kg3 {[%emt 0:00:19]} Qd7 {[%emt 0:01:43]} 35. Qb3+ {[%emt 0:00:46]} Kh8 {[%emt 0:00:57]} 36. Qe6 {[%emt 0:00:59]} Qxe6 {[%emt 0:06:35]} 37. Rxe6 {[%emt 0:00:01]} Rf7 {[%emt 0:00:33]} 38. Be5 {[%emt 0:01:35]} Kh7 {[%emt 0:00:53]} 39. Bd6 {[%emt 0:00:24]} Bc8 {[%emt 0:00:53]} 40. Re7 {[%emt 0:00:20]} Kg6 {[%emt 0:00:22]} 41. Rxf7 {[%emt 0:00:23]} Kxf7 {[%emt 0:00:01]} 42. Kf4 {[%emt 0:01:12]} Ke6 {[%emt 0:00:17]} 43. Bf8 {[%emt 0:00:33]} g5+ {[%emt 0:00:32]} 44. Ke4 {[%emt 0:00:43]} h5 {[%emt 0:01:28]} 45. Kd4 {[%emt 0:00:11]} h4 {[%emt 0:00:26]} 46. Kc5 {[%emt 0:00:52]} Kf5 {[%emt 0:00:41]} 47. Kxc6 {[%emt 0:00:31]} Be6 {[%emt 0:00:05]} 48. Bd6 {[%emt 0:00:26]} Bc4 {[%emt 0:01:56]} 49. g3 {[%emt 0:00:47]} hxg3 {[%emt 0:00:36]} 50. Bxg3 {[%emt 0:00:05]} Bf1 {[%emt 0:00:04]} 51. Kb6 {[%emt 0:00:12]} Bxh3 {[%emt 0:00:08]} 1/2-1/2

[Event "Panchenko Memorial 2019"]
[Site "Chelyabinsk"]
[Date "2019.09.17"]
[Round "9.4"]
[White "Radzhabov, Rodion"]
[Black "Shaposhnikov, Evgeny"]
[Result "1/2-1/2"]
[ECO "B30"]
[WhiteElo "2384"]
[BlackElo "2572"]
[Annotator "ChessBase"]
[PlyCount "80"]
[EventDate "2019.09.09"]
[EventType "swiss"]
[EventCountry "RUS"]
[SourceTitle "playchess.com"]
[Source "ChessBase"]
[SourceQuality "1"]
[TimeControl "5400+30"]

1. e4 {[%emt 0:00:00]} c5 {[%emt 0:00:00]} 2. Nf3 {[%emt 0:00:00]} Nc6 {[%emt 0:00:00]} 3. Bb5 {[%emt 0:00:08]} d6 {[%emt 0:00:00]} 4. O-O {[%emt 0:00:14]} Bd7 {[%emt 0:00:08]} 5. Re1 {[%emt 0:00:13]} Nf6 {[%emt 0:00:20]} 6. c3 {[%emt 0:01:15]} a6 {[%emt 0:00:15]} 7. Bf1 {[%emt 0:00:11]} Bg4 {[%emt 0:00:12]} 8. h3 {[%emt 0:00:20]} Bxf3 {[%emt 0:02:57]} 9. Qxf3 {[%emt 0:00:10]} e6 {[%emt 0:00:15]} 10. d3 {[%emt 0:01:27]} Be7 {[%emt 0:01:10]} 11. Nd2 {[%emt 0:00:27]} O-O {[%emt 0:00:18]} 12. Qd1 {[%emt 0:00:31]} b5 {[%emt 0:00:40]} 13. Nf3 {[%emt 0:03:24]} b4 {[%emt 0:01:20]} 14. cxb4 {[%emt 0:26:13]} Nxb4 {[%emt 0:02:28]} 15. d4 {[%emt 0:01:25]} d5 {[%emt 0:01:20]} 16. exd5 {[%emt 0:18:44]} Nbxd5 {[%emt 0:01:10]} 17. b3 {[%emt 0:03:22]} cxd4 {[%emt 0:01:53]} 18. Qxd4 {[%emt 0:04:28]} Nb4 {[%emt 0:06:31]} 19. Qxd8 {[%emt 0:09:04]} Rfxd8 {[%emt 0:00:27]} 20. Re2 {[%emt 0:03:09]} Nfd5 {[%emt 0:04:11]} 21. Bb2 {[%emt 0:03:32]} Nf4 {[%emt 0:14:15]} 22. Re4 {[%emt 0:02:34]} Nfd3 {[%emt 0:04:44]} 23. Bd4 {[%emt 0:04:52]} Nc2 {[%emt 0:07:10]} 24. Rd1 {[%emt 0:04:40]} Ndb4 {[%emt 0:01:19]} 25. Rd2 {[%emt 0:04:21]} a5 {[%emt 0:13:23]} 26. a4 {[%emt 0:00:33]} Nxd4 {[%emt 0:01:30]} 27. Rexd4 {[%emt 0:00:13]} Rxd4 {[%emt 0:09:49]} 28. Rxd4 {[%emt 0:00:05]} Rd8 {[%emt 0:03:55]} 29. Bb5 {[%emt 0:00:34]} Bf6 {[%emt 0:06:37]} 30. Rxd8+ {[%emt 0:00:27]} Bxd8 {[%emt 0:00:02]} 31. Ne5 {[%emt 0:02:04]} Bc7 {[%emt 0:01:08]} 32. Nc6 {[%emt 0:00:42]} Nxc6 {[%emt 0:03:30]} 33. Bxc6 {[%emt 0:00:05]} Bd6 {[%emt 0:00:03]} 34. Kf1 {[%emt 0:00:04]} Kf8 {[%emt 0:00:04]} 35. Ke2 {[%emt 0:00:04]} Ke7 {[%emt 0:00:04]} 36. Bb5 {[%emt 0:00:09]} f5 {[%emt 0:00:07]} 37. Bd3 {[%emt 0:00:24]} Kf6 {[%emt 0:00:07]} 38. Bc4 {[%emt 0:00:19]} g5 {[%emt 0:00:07]} 39. g4 {[%emt 0:01:19]} h6 {[%emt 0:00:14]} 40. Kf3 {[%emt 0:00:21]} Bb4 {[%emt 0:00:06] Ke4 Ke5+} 1/2-1/2

[Event "Panchenko Memorial 2019"]
[Site "Chelyabinsk"]
[Date "2019.09.17"]
[Round "9.5"]
[White "Tologontegin, Semetey"]
[Black "Frolyanov, Dmitry"]
[Result "0-1"]
[ECO "A45"]
[WhiteElo "2369"]
[BlackElo "2556"]
[Annotator "ChessBase"]
[PlyCount "94"]
[EventDate "2019.09.09"]
[EventType "swiss"]
[EventCountry "RUS"]
[SourceTitle "playchess.com"]
[Source "ChessBase"]
[SourceQuality "1"]
[TimeControl "5400+30"]

1. d4 {[%emt 0:01:33]} Nf6 {[%emt 0:00:00]} 2. Nc3 {[%emt 0:00:06]} d5 {[%emt 0:00:00]} 3. Bf4 {[%emt 0:00:05]} a6 {[%emt 0:00:25]} 4. e3 {[%emt 0:00:27]} c5 {[%emt 0:01:00]} 5. dxc5 {[%emt 0:02:19]} Qa5 {[%emt 0:00:49]} 6. Qd2 {[%emt 0:35:42]} e6 {[%emt 0:04:45]} 7. Bd6 {[%emt 0:00:26]} Bxd6 {[%emt 0:00:45]} 8. cxd6 {[%emt 0:00:03]} O-O {[%emt 0:03:13]} 9. Nf3 {[%emt 0:09:52]} Nc6 {[%emt 0:00:52]} 10. g4 {[%emt 0:07:17]} Ne8 {[%emt 0:04:10]} 11. e4 {[%emt 0:12:56]} Nxd6 {[%emt 0:01:16]} 12. exd5 {[%emt 0:12:53]} exd5 {[%emt 0:00:33]} 13. O-O-O {[%emt 0:01:54]} Be6 {[%emt 0:08:20]} 14. a3 {[%emt 0:00:14]} Ne4 {[%emt 0:02:03]} 15. Nxe4 {[%emt 0:00:06]} dxe4 {[%emt 0:00:05]} 16. Qxa5 {[%emt 0:01:36]} Nxa5 {[%emt 0:00:06]} 17. Ng5 {[%emt 0:00:19]} Bxg4 {[%emt 0:00:21]} 18. Rd5 {[%emt 0:00:35]} Rad8 {[%emt 0:03:30]} 19. c4 {[%emt 0:00:05]} Rxd5 {[%emt 0:04:35]} 20. cxd5 {[%emt 0:00:05]} Rc8+ {[%emt 0:01:35]} 21. Kd2 {[%emt 0:01:56]} h6 {[%emt 0:00:53]} 22. Rg1 {[%emt 0:00:24]} Bf5 {[%emt 0:01:47]} 23. Bh3 {[%emt 0:01:20]} Nc4+ {[%emt 0:02:39]} 24. Ke2 {[%emt 0:03:24]} Bxh3 {[%emt 0:02:47]} 25. Nxh3 {[%emt 0:00:03]} Nd6 {[%emt 0:03:42]} 26. Kd2 {[%emt 0:06:24]} Kf8 {[%emt 0:01:10]} 27. Nf4 {[%emt 0:00:17]} g5 {[%emt 0:00:37]} 28. Ne2 {[%emt 0:00:11]} Nc4+ {[%emt 0:01:17]} 29. Kc3 {[%emt 0:00:29]} Nxa3+ {[%emt 0:02:56]} 30. Kd4 {[%emt 0:00:12]} Nb5+ {[%emt 0:01:19]} 31. Ke5 {[%emt 0:01:21]} Ke7 {[%emt 0:01:14]} 32. h4 {[%emt 0:00:46]} Nd6 {[%emt 0:00:48]} 33. hxg5 {[%emt 0:00:03]} hxg5 {[%emt 0:00:05]} 34. Rh1 {[%emt 0:00:59]} Rc4 {[%emt 0:02:34]} 35. Rh6 {[%emt 0:00:21]} Ne8 {[%emt 0:03:08]} 36. Ng3 {[%emt 0:00:20]} f6+ {[%emt 0:01:20]} 37. Kf5 {[%emt 0:00:02]} Kf7 {[%emt 0:00:46]} 38. Rh7+ {[%emt 0:01:12]} Ng7+ {[%emt 0:00:08]} 39. Rxg7+ {[%emt 0:00:15]} Kxg7 {[%emt 0:00:05]} 40. Ke6 {[%emt 0:00:10]} Kf8 {[%emt 0:01:48]} 41. Nf5 {[%emt 0:01:12]} Rc2 {[%emt 0:03:08]} 42. d6 {[%emt 0:00:28]} Ke8 {[%emt 0:00:09]} 43. b4 {[%emt 0:00:24]} Rxf2 {[%emt 0:05:18]} 44. d7+ {[%emt 0:00:09]} Kd8 {[%emt 0:00:04]} 45. Nd6 {[%emt 0:00:03]} Rd2 {[%emt 0:00:06]} 46. Nxb7+ {[%emt 0:00:04]} Kc7 {[%emt 0:00:07]} 47. Nc5 {[%emt 0:00:04]} e3 {[%emt 0:00:15]} 0-1